bitfinex/quotes_SOLUSD_20260202
["timestamp","ask_amount","ask_price","bid_price","bid_amount"]
[1770064973969,0.9844862,103.63,103.59,4.58556816]
[1770064974383,0.9844862,103.63,103.57,9.85500269]
[1770064974384,0.9844862,103.63,103.6,4.58556816]
[1770064974748,10.63434178,103.63,103.6,4.58556816]
[1770064975274,10.63376409,103.64,103.61,1.00542332]
[1770064975577,10.63376409,103.64,103.61,4.58556816]
[1770064976164,0.9844862,103.63,103.59,1.00542332]
[1770064976365,10.63376409,103.64,103.61,1.00542332]
[1770064976572,10.63376409,103.64,103.61,4.58556816]
[1770064977276,0.9844862,103.64,103.61,4.58556816]
[1770064978675,10.6334665,103.64,103.61,4.58556816]
[1770064979973,10.63194686,103.66,103.63,4.58556816]
[1770064980377,10.63194686,103.66,103.63,1.00542332]
[1770064980567,0.9844862,103.65,103.62,1.00542332]
[1770064980874,0.9844862,103.65,103.61,3.58014484]
[1770064981059,0.9844862,103.64,103.6,4.58556816]
[1770064981451,3.58014484,103.65,103.62,4.58556816]
[1770064981452,0.9844862,103.65,103.62,4.58556816]
[1770064981655,0.9844862,103.65,103.62,1.00542332]
[1770064981867,0.9844862,103.65,103.62,4.58556816]
[1770064982084,10.63240348,103.65,103.62,4.58556816]
[1770064982658,9.79350363,103.65,103.62,4.58556816]
[1770064983160,9.79350363,103.65,103.63,3.58014484]
[1770064984764,24.11730657,103.66,103.63,3.58014484]
[1770064984765,10.63182712,103.66,103.63,4.58556816]
[1770064985264,10.63182712,103.66,103.63,3.58014484]
[1770064985782,10.6309554,103.67,103.64,4.58556816]
[1770064986777,9.64506172,103.68,103.65,4.58556816]
[1770064986976,10.62954792,103.68,103.65,4.58556816]
[1770064988090,0.9844862,103.67,103.64,4.58556816]
[1770064988265,0.9844862,103.67,103.64,1.00542332]
[1770064988595,0.9844862,103.67,103.63,4.58556816]
[1770064989071,10.63140883,103.66,103.63,4.58556816]
[1770064990579,0.9844862,103.66,103.63,4.58556816]
[1770064990780,10.63081708,103.67,103.64,4.58556816]
[1770064993889,10.63010696,103.68,103.65,4.58556816]
[1770064994684,10.62915171,103.69,103.66,4.58556816]
[1770064994982,10.62915171,103.69,103.66,1.00542332]
[1770064998392,0.9844862,103.68,103.65,1.00542332]
[1770064998587,37.33513921,103.69,103.65,3.58014484]
[1770064998588,34.73948057,103.69,103.65,3.58014484]
[1770064998790,34.73948057,103.69,103.66,1.00542332]
[1770064998992,10.62915171,103.69,103.66,4.58556816]
[1770065000786,9.64369322,103.7,103.67,3.58014484]
[1770065000996,9.422224,103.7,103.68,1.01724595]
[1770065005396,10.44649,103.7,103.67,4.59739079]
[1770065007202,10.44649,103.7,103.67,1.01724595]
[1770065009503,10.44649,103.7,103.67,4.59739079]
[1770065014908,10.66951448,103.71,103.68,1.01724595]
[1770065015096,10.66951448,103.71,103.68,4.59739079]
[1770065015407,10.66865964,103.72,103.69,4.59739079]
[1770065020589,1.0281463,103.71,103.67,1.01724595]
[1770065020800,1.0281463,103.71,103.65,13.22752763]
[1770065020801,1.0281463,103.71,103.68,4.59739079]
[1770065021009,1.0281463,103.71,103.69,1.01724595]
[1770065021722,34.77346986,103.72,103.69,1.01724595]
[1770065021885,3.58014484,103.73,103.71,1.01724595]
[1770065021886,9.6404126,103.73,103.71,1.01724595]
[1770065022089,10.66879446,103.73,103.7,1.01724595]
[1770065023192,1.02884488,103.72,103.69,4.59739079]
[1770065023393,1.02884488,103.71,103.67,4.59739079]
[1770065024610,1.02907242,103.7,103.64,1.01724595]
[1770065024788,1.02907242,103.7,103.66,4.59739079]
[1770065025410,10.67342888,103.69,103.66,1.01724595]
[1770065030619,10.67342888,103.69,103.66,4.59776205]
[1770065031515,9.64413154,103.69,103.67,1.10149357]
[1770065034027,1.03140923,103.69,103.67,1.10149357]
[1770065034601,4.61212341,103.68,103.64,4.68200967]
[1770065034816,1.03160731,103.67,103.64,1.10149357]
[1770065037126,10.67812242,103.67,103.64,1.10149357]
[1770065037325,9.64651511,103.67,103.65,1.10149357]
[1770065040105,10.67763949,103.68,103.65,1.10149357]
[1770065042929,10.67856368,103.68,103.65,1.10149357]
[1770065044202,10.67794431,103.69,103.65,1.10149357]
[1770065044543,1.03346718,103.69,103.66,1.10149357]
[1770065045423,13.22371764,103.7,103.67,1.10149357]
[1770065045424,10.67684316,103.7,103.67,1.10149357]
[1770065046523,1.03381406,103.69,103.66,4.68200967]
[1770065046723,1.03381406,103.69,103.66,1.10149357]
[1770065046925,1.03381406,103.69,103.65,13.22779274]
[1770065046926,9.64080204,103.73,103.69,1.10149357]
[1770065047126,10.67478656,103.73,103.7,4.68200967]
[1770065049826,10.67478656,103.73,103.71,3.5805161]
[1770065050441,1.03448423,103.72,103.7,3.5805161]
[1770065052231,10.67596319,103.72,103.69,1.10149357]
[1770065052435,1.03480788,103.71,103.69,3.5805161]
[1770065053314,1.03480788,103.71,103.67,4.68200967]
[1770065054125,1.03480788,103.71,103.68,4.68200967]
[1770065054322,10.67730097,103.71,103.69,3.5805161]
[1770065055938,10.67730097,103.71,103.68,4.68200967]
[1770065057234,34.78028228,103.72,103.69,1.10149357]
[1770065057440,10.6769271,103.72,103.69,4.68200967]
[1770065057634,1.03558503,103.71,103.69,4.68200967]
[1770065058134,10.6769271,103.72,103.69,4.68200967]
[1770065058314,10.6769271,103.72,103.7,1.10149357]
[1770065058519,10.67666512,103.73,103.7,1.10149357]
[1770065059117,9.64092997,103.73,103.7,1.10149357]
[1770065059326,1.03588354,103.72,103.7,1.10149357]
[1770065060545,10.67739165,103.72,103.69,4.70878959]
[1770065060842,1.03617523,103.71,103.68,4.70878959]
[1770065061141,1.03617523,103.71,103.68,1.12827349]
[1770065061540,1.03631856,103.7,103.67,1.12827349]
[1770065062243,1.03646025,103.69,103.66,1.12827349]
[1770065062430,1.03646025,103.68,103.65,1.12827349]
[1770065062635,10.68181808,103.68,103.65,1.12827349]
[1770065063526,14.26166513,103.69,103.66,1.12827349]
[1770065064223,14.25991875,103.71,103.67,1.12827349]
[1770065064434,5.31200962,103.72,103.69,1.12827349]
[1770065064633,14.95407916,103.72,103.69,1.12827349]
[1770065064839,10.67880831,103.72,103.69,4.70878959]
[1770065065027,9.64206954,103.72,103.69,4.70878959]
[1770065065228,10.67894518,103.72,103.69,4.70878959]
[1770065065428,9.64206954,103.72,103.7,1.12827349]
[1770065065629,9.64206954,103.72,103.69,4.70878959]
[1770065065847,10.67894518,103.72,103.69,1.12827349]
[1770065066024,10.67894518,103.72,103.68,4.70878959]
[1770065066349,10.67894518,103.72,103.69,1.12827349]
[1770065068758,14.25946128,103.72,103.69,1.12827349]
[1770065070147,1.03753673,103.71,103.67,1.12827349]
[1770065070453,1.03753673,103.71,103.68,1.12827349]
[1770065071552,10.67998284,103.71,103.68,1.12827349]
[1770065075446,1.03816073,103.7,103.68,1.12827349]
[1770065075645,10.68060684,103.71,103.68,1.12827349]
[1770065076946,14.26112294,103.71,103.68,1.12827349]
[1770065077767,14.26136261,103.71,103.68,1.12827349]
[1770065078053,1.0384004,103.71,103.68,1.12827349]
[1770065078265,9.64187887,103.72,103.69,1.12827349]
[1770065079055,1.03863461,103.69,103.65,1.12827349]
[1770065079334,1.03863461,103.69,103.66,1.12827349]
[1770065079335,4.61915071,103.69,103.66,1.12827349]
[1770065079573,14.26372933,103.69,103.66,1.12827349]
[1770065081151,10.68321323,103.69,103.66,1.12827349]
[1770065081352,14.26372933,103.69,103.66,1.12827349]
[1770065084765,4.61971308,103.68,103.64,1.12827349]
[1770065085353,1.03919698,103.68,103.65,1.12827349]
[1770065085761,4.61971308,103.68,103.65,1.12827349]
[1770065088371,14.2664615,103.68,103.65,1.12827349]
[1770065088661,10.68480521,103.68,103.65,1.12827349]
[1770065090369,14.2664615,103.68,103.65,1.12827349]
[1770065092665,10.68480521,103.68,103.65,1.12827349]
[1770065095451,10.68480521,103.68,103.64,1.0465838]
[1770065095452,1.04051582,103.67,103.64,1.0465838]
[1770065096167,34.79887185,103.68,103.65,1.0465838]
[1770065096357,1.0406093,103.67,103.64,3.58165629]
[1770065096667,1.0406093,103.67,103.64,1.0465838]
[1770065097973,10.68719348,103.67,103.64,1.0465838]
[1770065100374,1.04097261,103.64,103.61,1.0465838]
[1770065100585,4.6226289,103.64,103.61,1.0465838]
[1770065100953,1.04097261,103.64,103.61,1.0465838]
[1770065101354,4.6226289,103.64,103.61,1.0465838]
[1770065101763,4.61348572,103.66,103.62,1.02955321]
[1770065102080,1.03182943,103.66,103.62,1.02955321]
[1770065102268,1.03182943,103.65,103.63,1.02955321]
[1770065102769,10.67827579,103.67,103.64,1.02955321]
[1770065102961,1.03182943,103.67,103.64,1.02955321]
[1770065103373,1.03182943,103.66,103.64,1.02955321]
[1770065104459,1.03182943,103.65,103.63,1.02955321]
[1770065105373,1.03182943,103.65,103.62,1.02955321]
[1770065106390,10.6802782,103.65,103.62,1.02955321]
[1770065107374,1.03182943,103.63,103.6,1.02955321]
[1770065107685,4.61348572,103.64,103.6,1.02955321]
[1770065107984,1.03182943,103.63,103.6,1.02955321]
[1770065108661,10.68167115,103.63,103.6,1.02955321]
[1770065110796,10.6815251,103.64,103.61,1.02955321]
[1770065113978,10.6815251,103.64,103.61,4.6112095]
[1770065114585,10.6800709,103.65,103.63,1.02955321]
[1770065114779,10.6800709,103.65,103.62,1.02955321]
[1770065115888,4.27527085,103.66,103.63,1.02955321]
[1770065116070,10.67820006,103.67,103.64,1.02955321]
[1770065116388,1.03182943,103.66,103.63,1.02955321]
[1770065117287,1.03182943,103.66,103.63,4.6112095]
[1770065118189,10.67926339,103.66,103.63,4.6112095]
[1770065118384,10.67836221,103.67,103.64,1.02955321]
[1770065119602,9.64653278,103.67,103.64,3.58165629]
[1770065119785,29.42010568,103.68,103.65,1.02955321]
[1770065119786,9.64506172,103.68,103.65,1.02955321]
[1770065119986,9.64455302,103.69,103.67,1.02412591]
[1770065120286,1.04269664,103.68,103.65,1.02412591]
[1770065121194,1.04276507,103.67,103.64,1.02412591]
[1770065121396,4.62442136,103.68,103.64,1.02412591]
[1770065122384,10.68882481,103.67,103.64,1.02412591]
[1770065123475,9.64546091,103.68,103.65,1.02412591]
[1770065123669,9.64546091,103.68,103.66,1.02412591]
[1770065124976,9.64454084,103.69,103.67,1.02412591]
[1770065125892,18.63484006,103.71,103.68,1.02412591]
[1770065126099,1.04309562,103.7,103.67,1.02412591]
[1770065126594,10.68685766,103.7,103.67,1.02412591]
[1770065126795,1.04309562,103.69,103.66,4.6057822]
[1770065126984,1.04309562,103.69,103.66,1.02412591]
[1770065128697,38.37664477,103.7,103.66,1.02412591]
[1770065129400,1.04328498,103.69,103.66,1.02412591]
[1770065131006,10.68802812,103.69,103.66,1.02412591]
[1770065131583,9.64474314,103.69,103.66,1.02412591]
[1770065131782,9.64372565,103.7,103.68,1.02412591]
[1770065132393,10.68719353,103.7,103.68,1.02412591]
[1770065132582,10.68719353,103.7,103.67,1.02412591]
[1770065132788,1.04346788,103.69,103.67,1.02412591]
[1770065133385,14.2689094,103.7,103.67,1.02412591]
[1770065134305,38.37697214,103.7,103.67,1.02412591]
[1770065135081,1.04358635,103.69,103.66,1.02412591]
[1770065136413,10.68817397,103.69,103.66,1.02412591]
[1770065136704,10.68817397,103.69,103.65,3.58165629]
[1770065136705,9.64367639,103.7,103.68,1.02412591]
[1770065137088,10.68737849,103.7,103.68,1.02412591]
[1770065141906,10.68737849,103.7,103.64,9.64830111]
[1770065142130,1.04403375,103.68,103.64,1.02412591]
[1770065142292,1.04403375,103.68,103.65,1.02412591]
[1770065143508,1.04408682,103.69,103.66,1.02412591]
[1770065144094,10.68893624,103.69,103.66,1.02412591]
[1770065144611,14.27059253,103.69,103.66,1.02412591]
[1770065145108,3.58165629,103.68,103.66,1.02412591]
[1770065145312,4.62584744,103.68,103.65,1.02412591]
[1770065146111,14.27153199,103.68,103.65,1.02412591]
[1770065146291,10.6898757,103.68,103.65,1.02412591]
[1770065149108,38.38105377,103.69,103.65,1.02412591]
[1770065149413,38.38105377,103.69,103.66,1.02412591]
[1770065149414,10.68906862,103.69,103.66,1.02412591]
[1770065151712,9.64467591,103.69,103.66,1.02412591]
[1770065152112,10.67482258,103.7,103.67,1.09901685]
[1770065152496,9.64262448,103.71,103.68,1.09901685]
[1770065152710,10.67285023,103.72,103.69,1.09901685]
[1770065155103,9.64171042,103.72,103.7,1.09901685]
[1770065155399,10.67285023,103.72,103.69,1.09901685]
[1770065155599,14.25340308,103.72,103.69,1.09901685]
[1770065156616,10.67285023,103.72,103.69,1.09901685]
[1770065157619,10.45302867,103.72,103.69,1.09901685]
[1770065160210,9.42188886,103.72,103.7,1.09901685]
[1770065160412,9.92928525,103.72,103.7,1.09901685]
[1770065160611,9.92928525,103.72,103.69,1.09901685]
[1770065160933,8.89814544,103.72,103.7,1.09901685]
[1770065161918,13.5098381,103.72,103.69,1.09901685]
[1770065162224,9.92928525,103.72,103.69,1.09901685]
[1770065162427,8.89814544,103.72,103.69,1.09901685]
[1770065165523,9.92928525,103.72,103.69,1.09901685]
[1770065168929,8.89814544,103.72,103.7,1.09901685]
[1770065169223,9.92928525,103.72,103.7,1.09901685]
[1770065169522,26.21078379,103.74,103.71,1.09901685]
[1770065169719,18.52703527,103.74,103.71,1.09901685]
[1770065170926,1.03113981,103.71,103.62,107.17527085]
[1770065171109,4.61169266,103.71,103.66,3.58055285]
[1770065171426,1.03113981,103.7,103.66,3.58055285]
[1770065171610,1.03113981,103.69,103.65,3.58055285]
[1770065172013,14.25597789,103.69,103.64,13.2292935]
[1770065172330,9.64428523,103.69,103.65,3.58055285]
[1770065172832,9.64428523,103.69,103.66,1.09901685]
[1770065174114,10.67300784,103.72,103.69,1.09901685]
[1770065174341,10.67300784,103.72,103.67,3.58055285]
[1770065174342,1.03113981,103.71,103.67,3.58055285]
[1770065175008,4.61169266,103.71,103.67,3.58055285]
[1770065175210,1.03113981,103.71,103.67,3.58055285]
[1770065175634,4.61169266,103.7,103.65,13.22776376]
[1770065176131,4.61169266,103.69,103.64,3.58055285]
[1770065176330,4.61169266,103.69,103.65,1.09901685]
[1770065177614,1.03113981,103.67,103.64,1.09901685]
[1770065178122,1.03113981,103.65,103.61,4.6795697]
[1770065178326,1.03113981,103.64,103.61,1.09901685]
[1770065179031,1.03113981,103.64,103.61,4.6795697]
[1770065179622,1.03113981,103.65,103.62,1.09901685]
[1770065179838,1.03113981,103.65,103.61,1.09901685]
[1770065180033,1.02031419,103.63,103.59,1.0428397]
[1770065180213,1.02031419,103.63,103.6,1.0428397]
[1770065180412,13.22980275,103.64,103.61,1.0428397]
[1770065180413,10.66956409,103.64,103.61,1.0428397]
[1770065180615,1.02031419,103.64,103.61,4.62339255]
[1770065180817,1.02031419,103.64,103.61,1.0428397]
[1770065181632,10.66864762,103.65,103.62,1.0428397]
[1770065181831,1.02031419,103.64,103.61,4.62339255]
[1770065182538,14.94310484,103.66,103.62,4.62339255]
[1770065182736,1.02031419,103.65,103.62,4.62339255]
[1770065183540,10.66783399,103.66,103.63,1.0428397]
[1770065185044,1.02031419,103.67,103.64,4.62339255]
[1770065185236,10.6654001,103.68,103.65,4.62339255]
[1770065185450,10.6654001,103.68,103.65,3.58055285]
[1770065186953,10.66492932,103.69,103.65,4.62339255]
[1770065187261,1.02031419,103.68,103.65,4.62339255]
[1770065189349,9.64418269,103.69,103.66,3.58055285]
[1770065189533,1.02031419,103.68,103.65,4.62339255]
[1770065189732,10.66449688,103.69,103.66,3.58055285]
[1770065189931,10.66449688,103.69,103.66,4.62339255]
[1770065190347,10.66449688,103.69,103.66,1.0428397]
[1770065190530,1.02031419,103.68,103.65,4.62339255]
[1770065192045,10.66449688,103.69,103.66,4.62339255]
[1770065192754,10.66310867,103.71,103.68,1.0428397]
[1770065193064,9.64183203,103.72,103.69,4.62339255]
[1770065193248,9.64183203,103.72,103.69,1.0428397]
[1770065193556,9.64183203,103.72,103.69,4.62339255]
[1770065193747,37.31741535,103.75,103.7,4.62339255]
[1770065194125,41.5926862,103.75,103.7,4.62339255]
[1770065194327,37.31741535,103.75,103.7,4.62339255]
[1770065194632,41.5926862,103.75,103.7,4.62339255]
[1770065194936,1.02031419,103.74,103.7,4.62339255]
[1770065195135,1.02031419,103.73,103.69,4.62339255]
[1770065195330,1.02031419,103.73,103.7,1.0428397]
[1770065196865,10.66165626,103.72,103.7,1.0428397]
[1770065197236,9.64134207,103.72,103.7,1.0428397]
[1770065198632,10.66165626,103.72,103.7,1.0428397]
[1770065199154,34.7619739,103.73,103.7,1.0428397]
[1770065201058,1.02031419,103.71,103.67,4.62339255]
[1770065201259,1.02031419,103.71,103.66,4.62339255]
[1770065201260,1.02031419,103.7,103.66,4.62339255]
[1770065201446,1.02031419,103.68,103.65,1.0428397]
[1770065203658,10.46975558,103.68,103.65,1.0428397]
[1770065204674,14.05030843,103.68,103.65,1.0428397]
[1770065205546,3.58055285,103.67,103.63,1.0428397]
[1770065205741,4.60086704,103.67,103.63,1.0428397]
[1770065206443,1.02031419,103.66,103.63,1.0428397]
[1770065206755,1.02031419,103.64,103.61,1.0428397]
[1770065207543,10.66937173,103.64,103.61,1.0428397]
[1770065208052,10.66867575,103.65,103.61,1.0428397]
[1770065208259,14.2492286,103.65,103.61,1.0428397]
[1770065210158,10.51058267,103.64,103.61,1.0428397]
[1770065211784,10.51058267,103.64,103.61,4.62339255]
[1770065212449,10.51058267,103.64,103.61,4.62655907]
[1770065214549,3.58371937,103.65,103.62,0.89411249]
[1770065214550,10.5101206,103.65,103.62,0.89411249]
[1770065215178,14.09383997,103.65,103.62,0.89411249]
[1770065217556,10.51052576,103.64,103.62,0.89411249]
[1770065217857,10.51052576,103.64,103.61,0.89411249]
[1770065218364,10.51052576,103.64,103.62,0.89411249]
[1770065218849,9.64879338,103.64,103.62,0.89411249]
[1770065219470,10.51001615,103.65,103.62,0.89411249]
[1770065219685,9.64828377,103.65,103.63,0.89411249]
[1770065221383,0.86173238,103.64,103.6,0.89411249]
[1770065221586,10.51069014,103.64,103.61,0.89411249]
[1770065222487,3.58371937,103.65,103.62,4.47783186]
[1770065222488,0.86173238,103.65,103.62,4.47783186]
[1770065222698,10.50919623,103.66,103.63,0.89411249]
[1770065223068,0.86173238,103.67,103.65,0.89411249]
[1770065223296,10.50718119,103.68,103.65,0.74115327]
[1770065223581,10.50535632,103.7,103.66,3.58371937]
[1770065224282,10.50535632,103.7,103.67,3.58371937]
[1770065225187,10.50535632,103.7,103.67,4.47783186]
[1770065226007,10.50535632,103.7,103.67,0.89411249]
[1770065226157,0.86173238,103.68,103.65,0.89411249]
[1770065226579,0.86173238,103.68,103.65,4.47783186]
[1770065227181,10.50535632,103.7,103.67,0.89411249]
[1770065227478,14.77975715,103.71,103.68,0.89411249]
[1770065227777,0.86173238,103.7,103.68,0.89411249]
[1770065227976,0.86173238,103.7,103.67,4.47783186]
[1770065228859,0.86173238,103.69,103.66,4.47783186]
[1770065229461,10.50513595,103.7,103.67,0.89411249]
[1770065229702,14.77972702,103.71,103.68,0.89411249]
[1770065229880,0.86173238,103.7,103.68,0.89411249]
[1770065233090,0.86173238,103.7,103.68,4.47783186]
[1770065234593,10.50506252,103.7,103.68,0.89411249]
[1770065235471,0.86173238,103.73,103.7,0.89411249]
[1770065235678,0.86173238,103.72,103.69,4.47783186]
[1770065238181,10.50327931,103.72,103.69,4.47783186]
[1770065238495,0.86173238,103.7,103.66,4.47783186]
[1770065238680,0.86173238,103.69,103.66,4.47783186]
[1770065239192,0.86173238,103.7,103.67,4.47783186]
[1770065239706,10.50443613,103.71,103.68,0.89411249]
[1770065239889,10.50443613,103.71,103.68,4.47783186]
[1770065240078,10.50443613,103.71,103.68,0.89411249]
[1770065240397,0.77789892,103.7,103.68,0.89411249]
[1770065242596,0.77789892,103.7,103.67,3.58371937]
[1770065243190,0.77789892,103.7,103.66,4.30011698]
[1770065243496,0.77789892,103.7,103.67,0.71639761]
[1770065244592,0.77789892,103.7,103.67,4.30011698]
[1770065247698,10.42120496,103.7,103.67,4.30011698]
[1770065252307,0.77789892,103.7,103.67,4.30011698]
[1770065252494,0.77789892,103.7,103.68,0.71639761]
[1770065252800,9.64273116,103.71,103.68,0.71639761]
[1770065252998,0.77789892,103.71,103.69,0.71639761]
[1770065253378,10.42033688,103.71,103.69,0.71639761]
[1770065253583,9.64243796,103.71,103.69,0.71639761]
[1770065253798,10.41975419,103.72,103.69,0.71639761]
[1770065255907,0.77789892,103.71,103.68,4.30011698]
[1770065256085,0.77789892,103.69,103.65,0.71639761]
[1770065256410,3.58371937,103.7,103.67,0.71639761]
[1770065256411,4.36161829,103.7,103.67,0.71639761]
[1770065256598,0.77789892,103.7,103.67,0.71639761]
[1770065257408,0.77789892,103.7,103.66,4.30011698]
[1770065257409,10.42203046,103.69,103.66,4.30011698]
[1770065257587,10.42203046,103.69,103.66,0.71639761]
[1770065259306,0.77789892,103.68,103.65,3.58371937]
[1770065259604,13.22785091,103.69,103.61,50.92700005]
[1770065259605,4.36161829,103.66,103.62,0.71639761]
[1770065259787,4.36161829,103.66,103.63,0.71639761]
[1770065261417,10.4269702,103.64,103.59,9.65288583]
[1770065261582,14.01068957,103.64,103.6,0.71639761]
[1770065263210,14.01068957,103.64,103.61,0.71639761]
[1770065263598,0.77789892,103.63,103.6,0.71639761]
[1770065263802,14.01068957,103.64,103.61,0.71639761]
[1770065264009,14.00999271,103.65,103.62,0.71639761]
[1770065264195,10.42627334,103.65,103.62,0.71639761]
[1770065264507,10.42518876,103.66,103.63,0.71639761]
[1770065265090,4.36161829,103.65,103.62,0.71639761]
[1770065265310,0.77789892,103.65,103.62,0.71639761]
[1770065266213,10.42584182,103.65,103.62,0.71639761]
[1770065266711,0.77789892,103.64,103.61,0.71639761]
[1770065267903,0.77789892,103.64,103.61,4.30011698]
[1770065269405,10.33287738,103.65,103.62,0.69742447]
[1770065269616,0.68493448,103.65,103.62,4.28114384]
[1770065272400,0.68493448,103.65,103.62,4.28041359]
[1770065272599,0.68493448,103.65,103.63,0.6806178]
[1770065273817,0.68493448,103.65,103.6,0.6806178]
[1770065273818,0.64490121,103.64,103.6,0.6806178]
[1770065274027,0.64490121,103.63,103.6,4.26360692]
[1770065274219,0.64490121,103.63,103.6,0.6806178]
[1770065274403,0.64490121,103.63,103.6,4.26360692]
[1770065274904,0.64490121,103.63,103.61,0.6806178]
[1770065275224,0.64490121,103.63,103.6,0.6806178]
[1770065275401,0.64490121,103.63,103.6,4.26360692]
[1770065275797,0.64490121,103.63,103.6,0.6806178]
[1770065276396,10.29373996,103.64,103.6,0.6806178]
[1770065276599,10.29327739,103.65,103.62,0.6806178]
[1770065276821,13.87626651,103.65,103.62,0.6806178]
[1770065277719,0.64490121,103.63,103.6,0.6806178]
[1770065279105,13.87753116,103.64,103.61,0.6806178]
[1770065279309,10.29454204,103.64,103.61,0.6806178]
[1770065280022,13.87753116,103.64,103.61,0.6806178]
[1770065281023,10.29454204,103.64,103.61,0.6806178]
[1770065281224,0.64490121,103.63,103.61,0.6806178]
[1770065281728,10.2948743,103.63,103.6,0.6806178]
[1770065283110,0.64490121,103.61,103.59,0.6806178]
[1770065283313,0.64490121,103.59,103.57,0.2]
[1770065283510,0.64490121,103.58,103.57,0.2]
[1770065284123,4.22789033,103.59,103.57,0.2]
[1770065284422,4.22789033,103.59,103.56,0.1]
[1770065284423,0.64490121,103.58,103.56,0.1]
[1770065285224,0.64490121,103.59,103.56,0.7806178]
[1770065285526,4.22789033,103.59,103.56,0.7806178]
[1770065286428,13.8813442,103.59,103.56,0.7806178]
[1770065286606,0.64490121,103.58,103.56,0.1]
[1770065287321,4.22789033,103.58,103.56,0.1]
[1770065287536,0.64490121,103.56,103.54,0.2]
[1770065287834,4.22789033,103.57,103.54,0.8806178]
[1770065288531,13.88357236,103.57,103.54,0.8806178]
[1770065289029,24.13360362,103.59,103.54,0.8806178]
[1770065289030,0.64490121,103.59,103.55,0.6806178]
[1770065289207,0.64490121,103.58,103.55,0.6806178]
[1770065289743,10.29692675,103.61,103.57,0.6806178]
[1770065289902,0.64490121,103.6,103.57,0.6806178]
[1770065290407,0.64490121,103.59,103.56,4.26360692]
[1770065290608,13.88175481,103.59,103.56,0.6806178]
[1770065291232,10.29876569,103.59,103.56,0.6806178]
[1770065291636,10.29876569,103.59,103.55,4.26360692]
[1770065291937,10.29876569,103.59,103.56,0.6806178]
[1770065292925,0.64490121,103.59,103.56,0.6806178]
[1770065293124,10.29860453,103.59,103.56,0.6806178]
[1770065295713,16.95433581,103.6,103.57,0.6806178]
[1770065295913,16.95433581,103.6,103.59,0.6806178]
[1770065295914,6.35654018,103.6,103.59,0.6806178]
[1770065296420,10.2949976,103.63,103.59,4.26360692]
[1770065296627,0.64490121,103.62,103.59,3.58298912]
[1770065296928,0.64490121,103.62,103.58,4.26360692]
[1770065297129,4.22789033,103.62,103.59,0.6806178]
[1770065297340,0.64490121,103.62,103.58,4.26360692]
[1770065297536,4.22789033,103.62,103.58,0.6806178]
[1770065298037,10.29583919,103.62,103.59,0.6806178]
[1770065298222,23.92645095,103.64,103.59,4.26360692]
[1770065298524,44.46542246,103.64,103.59,0.6806178]
[1770065298730,3.58298912,103.62,103.59,0.6806178]
[1770065299317,3.58298912,103.63,103.59,0.6806178]
[1770065299759,3.58298912,103.62,103.59,0.6806178]
[1770065299920,3.58298912,103.6,103.56,0.64710487]
[1770065300121,83.06055947,103.64,103.55,0.64710487]
[1770065300122,13.23643057,103.59,103.55,0.64710487]
[1770065300515,19.46877808,103.59,103.55,0.64710487]
[1770065302639,43.6023817,103.59,103.55,0.64710487]
[1770065304225,43.6023817,103.59,103.55,4.23009399]
[1770065304926,15.88578896,103.59,103.56,0.64710487]
[1770065305124,6.23234751,103.59,103.57,0.64710487]
[1770065306128,6.23234751,103.59,103.57,4.23009399]
[1770065306443,4.317005,103.59,103.58,9.6123715]
[1770065309227,4.317005,103.59,103.58,8.96526663]
[1770065310833,3.69186771,103.59,103.58,9.5860024]
[1770065313052,3.69186771,103.59,103.58,0.62073577]
[1770065313239,3.69186771,103.59,103.58,9.5860024]
[1770065314858,3.69186771,103.59,103.57,8.96526663]
[1770065315042,3.69186771,103.59,103.58,8.96526663]
[1770065316154,3.69186771,103.59,103.55,33.7998259]
[1770065316336,4.31500273,103.59,103.56,8.96526663]
[1770065317234,0.62313502,103.58,103.55,8.96526663]
[1770065317449,0.62313502,103.57,103.54,9.16526663]
[1770065318254,0.62313502,103.57,103.55,8.96526663]
[1770065318454,0.62313502,103.57,103.54,9.16526663]
[1770065325250,0.62313502,103.57,103.55,8.96526663]
[1770065326352,0.62313502,103.57,103.55,3.58791459]
[1770065329247,0.62313502,103.57,103.54,3.78791459]
[1770065329449,0.62313502,103.56,103.54,0.2]
[1770065330451,0.62313502,103.55,103.53,0.1]
[1770065331632,0.62313502,103.54,103.53,0.1]
[1770065331835,0.62313502,103.55,103.53,0.1]
[1770065336370,10.28036607,103.55,103.53,0.1]
[1770065337355,9.65723105,103.55,103.53,0.1]
[1770065337565,0.62313502,103.54,103.53,0.1]
[1770065338258,0.62313502,103.54,103.52,0.1]
[1770065339272,0.62313502,103.54,103.51,0.2]
[1770065339447,0.57366606,103.53,103.51,0.2]
[1770065341666,10.23299107,103.53,103.51,0.2]
[1770065341861,0.57366606,103.53,103.51,0.2]
[1770065344066,10.23274451,103.53,103.51,0.2]
[1770065344454,0.57366606,103.52,103.51,0.2]
[1770065346154,10.23363514,103.52,103.51,0.2]
[1770065346376,0.57366606,103.51,103.49,3.78994705]
[1770065347150,0.57366606,103.53,103.5,3.9050253]
[1770065347353,0.57366606,103.53,103.5,3.90317206]
[1770065347553,0.57366606,103.53,103.5,3.58994705]